bitfinex/quotes_ETHUSD_20260312
["timestamp","ask_amount","ask_price","bid_price","bid_amount"]
[1773330004616,1.475,2081.0,2080.1,0.001]
[1773330005388,1.20117234,2081.3,2080.1,0.001]
[1773330005696,2.54328463,2081.8,2080.6,2.31060115]
[1773330005887,0.002,2081.9,2080.9,2.31060115]
[1773330006195,1.20284807,2081.9,2080.9,1.20140323]
[1773330006396,0.002,2081.9,2081.0,0.02813296]
[1773330006596,0.002,2081.9,2080.9,1.20140323]
[1773330007825,1.43989983,2083.6,2081.3,0.73813538]
[1773330007826,2.67924965,2082.9,2081.3,0.73813538]
[1773330008203,1.95607889,2082.6,2081.4,1.20111463]
[1773330008647,0.75565635,2082.4,2081.0,1.2013455]
[1773330008936,1.20042254,2082.6,2081.2,2.31060115]
[1773330009106,1.20042254,2082.6,2081.1,0.73813538]
[1773330009107,0.44436809,2082.5,2081.1,0.73813538]
[1773330009312,1.20039181,2082.4,2081.0,1.2013455]
[1773330009631,3.0662575,2081.9,2080.5,1.20163422]
[1773330009950,3.0662575,2081.9,2080.4,4.80676186]
[1773330009951,0.75565635,2081.7,2080.4,1.20164798]
[1773330010129,0.75565635,2081.7,2080.6,2.31060115]
[1773330010328,0.75565635,2081.7,2080.4,0.065536]
[1773330010329,1.20099923,2081.6,2080.4,0.065536]
[1773330010502,7.34662939,2081.9,2080.6,2.31060115]
[1773330010503,3.74415278,2081.9,2080.6,2.31060115]
[1773330010703,0.44561305,2081.8,2080.4,0.73813538]
[1773330011018,0.75565635,2081.6,2080.3,4.80676792]
[1773330011219,0.75565635,2081.5,2080.3,4.80676792]
[1773330011633,0.44584676,2081.4,2080.3,4.80676792]
[1773330011815,0.44589391,2081.3,2080.3,4.80676792]
[1773330012129,0.75565635,2081.5,2080.2,1.20180751]
[1773330012338,0.75565635,2081.5,2080.1,5.54636545]
[1773330012339,1.64705413,2081.4,2080.1,5.54636545]
[1773330012626,4.85388578,2081.9,2080.1,5.54636545]
[1773330012627,3.74413531,2081.9,2080.6,0.73813538]
[1773330012801,1.20145113,2081.8,2080.1,0.73913538]
[1773330013001,0.44579478,2081.7,2080.1,0.73913538]
[1773330013231,1.20145113,2081.7,2080.1,0.73913538]
[1773330013431,0.44579478,2081.6,2080.1,0.73913538]
[1773330013601,1.20145113,2081.6,2080.1,0.73913538]
[1773330013930,1.20145113,2081.6,2080.1,0.001]
[1773330013931,0.75565635,2081.4,2080.1,0.001]
[1773330014128,1.20145113,2081.3,2080.1,0.001]
[1773330014335,1.20123005,2081.2,2080.1,0.001]
[1773330014715,1.482,2081.5,2080.1,0.001]
[1773330014900,0.44598914,2081.4,2080.3,2.31060115]
[1773330015096,2.68305786,2081.5,2080.1,0.73913538]
[1773330015341,1.2010647,2081.5,2080.2,0.73813538]
[1773330015652,0.44596215,2081.4,2080.1,0.001]
[1773330015932,1.95671524,2081.5,2080.1,0.73913538]
[1773330016144,1.95671524,2081.5,2080.2,2.31060115]
[1773330016145,0.4459375,2081.4,2080.2,2.31060115]
[1773330016300,1.95671524,2081.5,2080.3,1.20174974]
[1773330016737,0.446074,2081.4,2080.3,1.20174974]
[1773330017040,1.20173678,2081.3,2080.2,1.20176304]
[1773330017235,0.44608043,2081.2,2080.2,1.20176304]
[1773330017821,0.44608043,2081.2,2080.1,4.80839098]
[1773330017822,0.75565635,2081.1,2080.1,0.001]
[1773330018020,1.20173678,2081.0,2080.1,0.001]
[1773330018246,1.20173678,2081.0,2079.9,0.001]
[1773330018247,0.75565635,2080.8,2079.9,0.001]
[1773330018446,0.75565635,2080.6,2079.9,0.001]
[1773330018645,6.28807487,2080.9,2079.9,0.001]
[1773330018646,3.43909851,2080.9,2079.9,0.001]
[1773330018822,1.20169232,2080.8,2079.9,0.001]
[1773330019020,1.20169232,2080.7,2079.9,0.001]
[1773330019245,0.44603597,2080.6,2079.9,0.001]
[1773330019447,0.44603597,2080.6,2078.4,1.595]
[1773330019448,0.75565635,2080.3,2078.4,1.595]
[1773330019650,2.31060115,2080.4,2078.5,4.81102007]
[1773330019651,0.75565635,2079.9,2078.5,4.81102007]
[1773330019859,0.44603597,2079.8,2078.5,4.81102007]
[1773330020358,1.20209645,2079.7,2078.3,1.20290622]
[1773330020650,1.20209645,2079.7,2078.3,1.96731415]
[1773330020651,0.44603597,2079.6,2078.3,1.96731415]
[1773330020853,0.19055292,2079.0,2078.3,1.96731415]
[1773330021350,0.19055292,2079.0,2078.3,4.2779153]
[1773330021553,0.19055292,2079.0,2078.4,0.76440793]
[1773330021851,0.19055292,2079.0,2078.3,1.96731415]
[1773330022229,0.11856292,2079.0,2078.4,0.76440793]
[1773330022433,0.11856292,2079.0,2078.7,0.76440793]
[1773330022434,0.01373191,2079.0,2078.7,0.76440793]
[1773330022732,0.01373191,2079.0,2078.4,1.20284834]
[1773330024445,0.01373191,2079.0,2078.4,1.96725627]
[1773330024653,0.01373191,2079.0,2078.6,0.5]
[1773330024855,0.01373191,2079.0,2078.5,0.76440793]
[1773330025045,1.20206489,2079.8,2078.5,0.76440793]
[1773330025265,1.94301187,2079.8,2078.6,1.594]
[1773330025673,1.94301187,2079.8,2078.6,2.35840793]
[1773330025674,1.20206489,2079.8,2078.6,2.35840793]
[1773330025842,3.74529829,2079.9,2078.6,2.35840793]
[1773330026258,3.74529829,2079.9,2078.7,0.02843858]
[1773330026473,0.74094698,2079.7,2078.4,1.594]
[1773330026678,3.74529829,2079.9,2078.5,1.96715272]
[1773330026846,3.74529829,2079.9,2078.2,1.96737203]
[1773330026847,0.74094698,2079.7,2078.2,1.96737203]
[1773330027047,0.74094698,2079.7,2078.3,3.07500908]
[1773330027348,0.74094698,2079.7,2078.4,0.76440793]
[1773330027565,3.74529829,2079.9,2078.4,0.76440793]
[1773330028377,1.20215426,2079.6,2078.5,1.20279047]
[1773330029254,1.20215426,2079.6,2078.3,1.20287098]
[1773330029255,3.05154813,2079.5,2078.3,1.20287098]
[1773330029766,0.74094698,2079.4,2078.3,1.20287098]
[1773330030392,1.20215426,2079.6,2078.3,1.96727891]
[1773330030590,1.20215426,2079.6,2078.5,0.5]
[1773330030797,0.74094698,2079.5,2078.3,1.96727891]
[1773330031283,1.20215426,2079.6,2078.3,1.96727891]
[1773330031450,3.28423161,2079.9,2078.5,0.76440793]
[1773330031451,1.20203865,2079.8,2078.5,0.76440793]
[1773330031856,7.35133904,2079.9,2078.5,0.76440793]
[1773330031857,2.54328463,2079.9,2078.5,0.76440793]
[1773330032061,3.74527914,2079.9,2078.5,0.76440793]
[1773330032256,3.74527914,2079.9,2078.7,0.76440793]
[1773330032489,3.74527914,2079.9,2078.8,1.20261689]
[1773330033099,2.67982346,2080.2,2078.9,0.76440793]
[1773330033311,1.20182346,2080.2,2079.1,0.76440793]
[1773330033669,1.20163422,2080.5,2079.3,0.76440793]
[1773330034367,4.80653689,2080.6,2079.3,0.76440793]
[1773330034368,1.2016171,2080.6,2079.3,0.76440793]
[1773330034691,1.2016171,2080.6,2079.4,1.96667781]
[1773330034880,2.31060115,2080.3,2079.3,1.20228283]
[1773330035194,0.74094698,2080.2,2079.1,1.20244336]
[1773330035566,0.74094698,2079.9,2078.7,1.20261689]
[1773330035961,1.476,2080.1,2078.7,1.20261689]
[1773330035962,3.05154813,2079.7,2078.7,0.001]
[1773330036195,0.74094698,2079.7,2078.8,0.5]
[1773330036400,2.65631947,2079.8,2078.8,0.5]
[1773330036560,1.20209645,2079.7,2078.9,1.20255904]
[1773330037001,1.20209645,2079.7,2078.8,1.70260368]
[1773330037194,1.20209645,2079.7,2078.8,1.20260368]
[1773330038091,3.5126976,2079.7,2078.7,1.20362088]
[1773330038268,3.5126976,2079.7,2078.7,1.20366255]
[1773330038465,3.5126976,2079.7,2078.7,0.001]
[1773330038466,1.20209645,2079.7,2078.7,0.001]
[1773330039191,7.11898697,2080.0,2078.9,0.76440793]
[1773330039192,1.20192307,2080.0,2078.9,0.76440793]
[1773330039776,1.20192307,2080.0,2078.7,0.001]
[1773330039777,0.44546322,2079.9,2078.7,0.001]
[1773330040005,0.74094698,2079.8,2078.7,0.001]
[1773330040305,2.31060115,2079.6,2078.7,0.001]
[1773330040503,0.74094698,2079.8,2078.7,0.001]
[1773330040703,1.64795373,2079.7,2078.7,1.20367157]
[1773330041006,1.64795373,2079.7,2077.8,1.20318732]
[1773330041007,3.05154813,2079.0,2077.8,1.20318732]
[1773330041189,0.44585728,2078.9,2077.8,1.20318732]
[1773330041501,0.44585728,2078.9,2077.3,1.587]
[1773330041502,0.44585728,2078.9,2077.3,2.35140793]
[1773330041703,2.31060115,2078.7,2077.4,4.81367838]
[1773330042105,0.74094698,2078.9,2077.4,4.81367838]
[1773330042406,0.44605411,2078.8,2077.5,0.76440793]
[1773330042577,1.20255904,2078.9,2077.6,1.96771944]
[1773330042779,0.4459905,2078.8,2077.6,1.96771944]
[1773330042976,1.20255904,2078.9,2077.6,1.96771944]
[1773330043178,0.44599265,2078.8,2077.6,1.96771944]
[1773330043408,0.44618301,2078.7,2077.6,1.96771944]
[1773330043581,2.75678738,2078.6,2077.3,1.20348529]
[1773330043785,3.51316019,2078.9,2077.4,0.74598344]
[1773330043999,0.44616798,2078.8,2077.5,1.586]
[1773330044195,0.44616798,2078.7,2077.5,1.586]
[1773330044396,0.44616798,2078.6,2077.5,1.586]
[1773330044590,4.24637857,2078.9,2077.6,1.20331151]
[1773330044786,0.44627836,2078.8,2077.6,1.20331151]
[1773330044976,0.44627836,2078.7,2077.6,1.20331151]
[1773330045287,0.44658695,2078.6,2077.6,1.94929495]
[1773330045611,1.20255904,2078.9,2077.7,0.74598344]
[1773330045808,0.44651711,2078.8,2077.7,0.74598344]
[1773330046106,1.20255904,2078.9,2077.7,0.74598344]
[1773330046406,0.44700736,2078.8,2077.7,0.74598344]
[1773330046611,1.2027326,2078.6,2077.4,4.81324605]
[1773330046812,0.44700736,2078.5,2077.4,5.55922949]
[1773330047016,1.2027326,2078.6,2077.5,0.74598344]
[1773330047189,0.44742258,2078.5,2077.5,0.74598344]
[1773330047392,4.81028196,2078.9,2077.5,0.74598344]
[1773330047593,0.44742258,2078.8,2077.5,0.74598344]
[1773330047921,3.49689806,2078.7,2077.1,5.56037684]
[1773330048129,0.73321838,2078.3,2077.1,1.20355727]
[1773330048328,0.44742258,2078.2,2077.1,1.20355727]
[1773330048497,0.44742258,2078.1,2077.1,1.20355727]
[1773330048829,1.65053592,2078.0,2077.1,1.20355727]
[1773330049030,4.81186808,2078.2,2077.1,1.20355727]
[1773330049230,0.44750812,2078.1,2077.2,0.74598344]
[1773330049415,1.2027326,2078.6,2077.2,0.74598344]
[1773330049740,0.44748496,2078.5,2077.2,0.74598344]
[1773330049903,0.44748496,2078.4,2077.2,0.74598344]
[1773330050111,0.44748496,2078.3,2077.2,0.74598344]
[1773330050295,0.44748496,2078.2,2077.2,0.74598344]
[1773330050496,1.2027326,2078.6,2077.2,0.74598344]
[1773330050735,1.20284834,2078.4,2077.4,0.70219278]
[1773330051037,0.4472381,2078.3,2077.4,0.70219278]
[1773330051192,0.4472381,2078.2,2077.3,1.20348529]
[1773330051397,3.51910544,2078.4,2077.3,1.20348529]
[1773330051636,2.3162571,2078.1,2077.0,0.001]
[1773330051850,3.03958852,2077.8,2077.0,0.001]
[1773330051991,3.03958852,2077.8,2076.6,4.81540711]
[1773330051992,1.1704451,2077.7,2076.6,1.20385023]
[1773330052193,2.3162571,2077.5,2075.8,0.70219278]
[1773330052389,0.44711368,2077.4,2075.8,0.70219278]
[1773330052621,0.44711368,2077.3,2075.8,0.70219278]
[1773330052818,1.65068871,2077.2,2076.0,0.70219278]
[1773330052998,1.20351942,2077.3,2076.1,0.70219278]
[1773330053698,1.20344103,2077.4,2076.1,0.70219278]
[1773330053897,1.20344103,2077.4,2077.1,0.001]
[1773330054105,1.20344103,2077.4,2076.1,0.70219278]
[1773330054517,1.20344103,2077.4,2076.9,0.001]
[1773330054726,1.20365912,2077.0,2075.8,4.81718772]
[1773330055110,1.20365912,2077.0,2075.9,0.70219278]
[1773330055306,1.20365912,2077.0,2075.8,4.81718772]
[1773330055307,0.72333142,2076.9,2075.8,4.81718772]
[1773330055518,2.3162571,2076.8,2075.8,4.81718772]
[1773330055723,2.3162571,2076.8,2075.7,1.20435494]
[1773330056236,0.72333142,2076.9,2075.7,1.20435494]
[1773330056539,1.20365912,2077.0,2075.7,1.90654772]
[1773330056935,7.13089359,2077.1,2075.8,0.70219278]
[1773330056936,1.2036279,2077.1,2075.8,0.70219278]
[1773330057137,1.2036279,2077.1,2075.9,1.58]
[1773330057339,0.72333142,2077.7,2076.1,0.70219278]
[1773330057526,4.81347773,2077.6,2076.1,0.70219278]
[1773330057734,2.57711899,2077.1,2076.1,0.70219278]
[1773330057930,2.57711899,2077.4,2076.1,0.70219278]
[1773330058313,5.53680915,2077.6,2076.1,0.70219278]
[1773330058846,1.20342736,2077.4,2076.3,0.70219278]
[1773330060419,1.20338421,2077.5,2076.3,0.70219278]
[1773330060622,2.57711899,2077.4,2076.3,0.70219278]
[1773330060830,2.57711899,2077.4,2075.9,2.57711899]
[1773330060831,2.57711899,2076.9,2076.0,1.20423892]
[1773330061034,2.57711899,2076.9,2075.9,1.90645374]
[1773330061343,2.57711899,2076.9,2075.9,1.20426096]
[1773330061344,3.30045041,2076.9,2075.9,1.20426096]
[1773330061519,0.72333142,2076.8,2075.9,1.20426096]
[1773330062252,6.28163649,2077.1,2075.9,1.90645374]
[1773330062253,1.467,2077.1,2075.9,1.90645374]
[1773330062428,1.20346742,2077.4,2076.0,0.70219278]
[1773330062628,3.04377929,2077.2,2076.0,0.70219278]
[1773330062848,1.20360117,2077.1,2075.7,4.81747703]
[1773330063031,1.20360117,2077.1,2075.6,0.70219278]
[1773330063032,0.72333142,2076.8,2075.6,1.90662044]
[1773330063224,2.18933142,2076.8,2075.6,1.90662044]
[1773330063449,1.20360117,2077.1,2075.8,0.70219278]
[1773330063652,5.53773611,2077.2,2075.8,0.70219278]
[1773330063653,1.20357805,2077.2,2075.8,0.70219278]
[1773330064457,4.81393725,2077.4,2075.8,0.70219278]
[1773330064947,4.81393725,2077.4,2076.0,1.9064317]
[1773330065433,4.81393725,2077.4,2076.1,0.70219278]
[1773330066353,5.53726867,2077.4,2076.1,0.70219278]
[1773330066813,7.00126867,2077.4,2076.2,1.90631569]
[1773330067015,6.27793725,2077.4,2076.2,1.90631569]
[1773330067251,2.66742736,2077.4,2076.3,0.001]
[1773330067747,1.1686676,2077.3,2076.3,0.001]
[1773330067947,2.32044787,2077.2,2076.3,0.001]
[1773330068247,0.44534369,2077.1,2076.3,0.001]
[1773330068856,1.20365912,2077.0,2076.3,0.001]
[1773330069028,2.66747054,2077.4,2076.3,0.70319278]
[1773330069221,0.44557701,2077.3,2076.3,0.70319278]
[1773330069429,0.44557701,2077.2,2076.3,0.70319278]
[1773330069629,4.98791841,2077.4,2076.3,0.70319278]
[1773330069825,0.44611836,2077.3,2076.3,0.70319278]
[1773330070053,2.66747054,2077.4,2076.3,0.70319278]
[1773330070239,0.44666435,2077.3,2076.3,0.70319278]
[1773330070557,2.66747054,2077.4,2076.3,0.70319278]
[1773330070858,0.44664499,2077.3,2076.3,0.70319278]
[1773330071040,2.66747054,2077.4,2076.4,1.20400693]
[1773330071234,0.44664714,2077.3,2076.4,1.20400693]
[1773330071434,2.66747054,2077.4,2076.4,1.20400693]
[1773330071657,1.20325359,2077.7,2076.6,0.70219278]
[1773330071826,1.463,2078.0,2076.6,0.70219278]
[1773330072031,1.64995266,2077.9,2076.6,0.70219278]
[1773330072336,0.44676833,2077.8,2076.6,0.70219278]
[1773330072658,2.66608748,2078.0,2076.6,0.70219278]
[1773330072828,0.44687644,2077.9,2076.6,0.70219278]
[1773330073027,2.66608384,2078.0,2076.8,0.70219278]
[1773330073231,1.2049518,2078.3,2076.8,0.70219278]
[1773330073448,1.2049518,2078.3,2077.1,0.70219278]
[1773330073449,0.002,2078.3,2077.1,0.70219278]
[1773330074169,0.002,2078.3,2077.4,0.70219278]
[1773330074763,1.2049157,2078.3,2077.4,0.70219278]
[1773330075133,0.002,2078.3,2077.5,1.20336943]
[1773330075333,0.002,2078.3,2077.4,1.90558662]
[1773330075634,0.002,2078.3,2076.7,2.32044787]
[1773330075635,2.32044787,2077.7,2076.7,1.203833]
[1773330075933,0.44728337,2077.6,2076.7,1.90602578]
[1773330076158,3.34929588,2077.9,2076.7,1.90602578]
[1773330076466,0.44761359,2077.8,2076.7,1.90602578]
[1773330076764,0.44761359,2077.7,2076.7,1.90602578]
[1773330076982,3.34929588,2077.9,2076.8,0.70219278]
[1773330076983,0.44761359,2077.6,2076.8,0.70219278]
[1773330077281,2.62596446,2077.9,2076.9,1.20371707]
[1773330077282,1.20320219,2077.8,2076.9,1.20371707]
[1773330077463,1.20320219,2077.8,2076.8,1.20372887]
[1773330077464,0.44786201,2077.7,2076.8,1.20372887]
[1773330077663,0.44786201,2077.6,2076.8,1.90592165]
[1773330077971,0.002,2078.3,2076.9,0.70219278]
[1773330078294,0.44772835,2078.2,2077.0,0.70219278]
[1773330078477,1.20491074,2078.3,2077.0,0.70219278]
[1773330078672,0.44767867,2078.2,2077.0,0.70219278]
[1773330078878,1.20491074,2078.3,2077.0,0.70219278]
[1773330079192,1.65067501,2078.2,2077.2,0.70219278]
[1773330079391,1.20494619,2078.3,2077.2,0.70219278]
[1773330079553,0.44763978,2078.2,2077.2,0.70219278]
[1773330079758,1.20494619,2078.3,2077.2,0.70219278]
[1773330080095,0.44762578,2078.2,2077.2,0.70219278]
[1773330080256,1.20494619,2078.3,2077.2,0.70219278]
[1773330080597,1.20494619,2078.3,2077.1,1.20360117]
[1773330080598,0.44761957,2078.2,2077.1,1.20360117]
[1773330080789,1.20494619,2078.3,2076.6,1.20389097]
[1773330080790,2.32044787,2077.8,2076.6,1.20389097]
[1773330080959,0.44761957,2077.7,2076.6,1.20389097]
[1773330081290,1.65093108,2077.6,2076.6,1.84776791]
[1773330081485,0.65832663,2078.0,2076.6,1.84776791]
[1773330081486,1.2029641,2078.2,2076.7,0.64387694]
[1773330081668,0.44791242,2078.1,2076.8,0.64387694]
[1773330081870,0.44791242,2078.0,2076.8,0.64387694]
[1773330082184,0.44791242,2077.9,2076.8,0.64387694]
[1773330082385,0.4478186,2077.8,2076.8,0.64387694]
[1773330082552,1.2029641,2078.2,2076.8,0.64387694]
[1773330082757,0.44781753,2078.1,2076.8,0.64387694]
[1773330082956,0.44781753,2078.0,2076.8,0.64387694]
[1773330083189,0.002,2078.3,2077.0,0.64387694]
[1773330083391,0.44771685,2078.2,2077.0,0.64387694]
[1773330083687,0.44771685,2078.1,2077.0,0.64387694]
[1773330083885,2.32044787,2077.9,2076.9,0.001]
[1773330084089,1.90771685,2077.8,2076.9,0.001]
[1773330084287,2.32044787,2077.6,2076.7,1.20382315]
[1773330084502,1.46,2077.8,2076.7,1.84770009]
[1773330084673,0.44777349,2077.7,2076.7,1.84770009]
[1773330084869,0.44777349,2077.6,2076.7,1.84770009]
[1773330085104,0.44781876,2077.5,2076.7,1.84770009]
[1773330085281,1.20325359,2077.7,2076.7,1.84770009]
[1773330085608,2.57687217,2077.5,2076.7,1.20382315]
[1773330085905,0.44791925,2077.4,2076.7,1.20382315]
[1773330086101,2.57687217,2077.5,2076.7,1.20382315]
[1773330086320,2.57687217,2077.3,2076.6,0.001]
[1773330086604,0.4480615,2077.4,2076.3,0.001]
[1773330086605,2.57687217,2077.0,2076.3,0.001]
[1773330086795,0.4480615,2076.9,2076.3,0.001]
[1773330087105,0.4480615,2076.9,2076.3,1.20505896]
[1773330087274,1.65178734,2076.9,2076.3,0.001]
[1773330087472,1.20372584,2076.9,2076.3,0.001]
[1773330087701,3.02500684,2076.8,2076.0,0.001]
[1773330087903,0.44813467,2076.7,2076.0,0.001]
[1773330088407,1.20369625,2077.0,2076.0,0.64487694]
[1773330088703,0.44804638,2076.9,2076.0,0.64487694]
[1773330088896,0.44804638,2076.8,2076.0,0.64487694]
[1773330089203,3.78056842,2077.0,2076.0,0.64487694]
[1773330089508,0.44798875,2076.9,2076.1,1.20418091]
[1773330089801,0.44798875,2076.8,2076.1,1.20418091]
[1773330089974,1.20369625,2077.0,2076.1,1.20418091]
[1773330090171,0.44797796,2076.9,2076.1,1.20418091]
[1773330090502,0.44797796,2076.9,2076.0,1.20519663]
[1773330090503,0.44797796,2076.8,2076.0,1.20519663]
[1773330090709,0.44797796,2076.7,2076.0,0.001]
[1773330090879,2.3203102,2076.9,2076.0,0.001]
[1773330091081,4.81446802,2077.1,2076.1,0.64387694]
[1773330091082,0.44801451,2076.8,2076.1,0.64387694]
[1773330091279,4.81394768,2077.3,2076.2,1.20412291]
[1773330091480,0.44797298,2077.2,2076.3,0.64387694]
[1773330091779,0.44797298,2077.1,2076.3,0.64387694]
[1773330091991,1.20348529,2077.3,2076.3,0.64387694]
[1773330092325,1.459,2077.4,2076.3,0.64387694]
[1773330092499,2.66242982,2077.4,2076.3,0.64387694]
[1773330092824,0.44795378,2077.3,2076.3,0.64387694]
[1773330093118,0.44795378,2077.3,2076.0,4.81749166]
[1773330093119,0.65832663,2077.1,2076.0,1.20520524]
[1773330093323,1.20377503,2076.8,2076.0,0.001]
[1773330093511,0.44795594,2076.7,2076.0,0.001]
[1773330093894,1.20377503,2076.8,2076.0,0.001]
[1773330094401,0.44809669,2076.7,2076.0,0.001]
[1773330094602,0.44809669,2076.6,2076.0,0.001]
[1773330094903,1.457,2076.9,2076.0,0.001]
[1773330095106,0.44811611,2076.8,2076.0,0.64487694]
[1773330095404,2.66075182,2076.9,2076.1,1.20418091]
[1773330095593,0.44804837,2076.8,2076.1,1.20418091]
[1773330095795,2.66075182,2076.9,2076.1,1.20418091]
[1773330095796,1.457,2077.3,2076.2,0.64387694]
[1773330095990,0.44797717,2077.2,2076.2,0.64387694]
[1773330096204,1.457,2077.3,2076.2,0.64387694]
[1773330096386,0.44796592,2077.2,2076.2,0.64387694]
[1773330096590,1.457,2077.3,2076.2,0.64387694]
[1773330096801,0.44796808,2077.2,2076.2,0.64387694]
[1773330097017,1.457,2077.3,2076.2,0.64387694]
[1773330097222,0.44797132,2077.2,2076.2,0.64387694]
[1773330097525,1.457,2077.3,2076.2,0.64387694]
[1773330097708,0.44798091,2077.2,2076.4,0.64387694]
[1773330097888,1.457,2077.3,2076.4,0.64387694]
[1773330097889,2.66049467,2077.3,2076.4,0.64387694]
[1773330098091,2.76829111,2077.2,2076.3,1.20406492]
[1773330098292,0.44804652,2077.1,2076.3,1.20406492]
[1773330098523,2.66049467,2077.3,2076.3,1.84794186]
[1773330098692,0.44804436,2077.2,2076.3,1.84794186]
[1773330098888,0.44804436,2077.1,2076.3,1.20406492]
[1773330099093,0.44804436,2077.0,2076.0,1.20520504]
[1773330099317,2.76835456,2076.9,2076.0,1.20520697]
[1773330099530,0.44804436,2076.8,2076.0,1.20520697]
[1773330099717,1.203833,2076.7,2076.0,0.001]
[1773330099913,4.22449226,2076.6,2076.0,0.001]
[1773330100106,0.44818206,2076.5,2076.3,0.001]
[1773330100302,0.44818206,2076.5,2076.0,0.001]
[1773330100517,0.44818206,2076.5,2075.5,1.84836814]
[1773330100518,2.3203102,2076.3,2075.5,1.84836814]
[1773330100734,9.50163683,2076.6,2075.5,1.2044912]
[1773330100926,9.50163683,2076.6,2075.8,0.001]
[1773330100927,0.44805253,2076.5,2075.8,0.001]
[1773330101125,0.44805253,2076.4,2075.8,0.001]
[1773330101325,0.44805253,2076.3,2075.8,0.001]
[1773330101503,2.3203102,2076.3,2075.8,0.001]
[1773330101851,1.20398336,2076.5,2075.8,0.001]
[1773330102018,0.4478398,2076.4,2075.8,0.001]
[1773330102208,2.65991928,2076.6,2075.8,0.001]
[1773330102403,0.44764814,2076.5,2075.8,0.001]
[1773330102638,0.44764814,2076.4,2075.8,0.001]
[1773330102954,2.76795834,2076.3,2075.8,0.001]
[1773330103175,2.76795834,2076.3,2075.1,1.20476121]
[1773330103176,0.44770099,2076.2,2075.1,1.20476121]
[1773330103318,2.3203102,2076.3,2075.1,1.20476121]
[1773330103640,0.44749155,2076.2,2075.1,1.20476121]
[1773330103839,4.81586165,2076.5,2075.2,0.62797566]
[1773330104010,1.20394895,2076.5,2075.2,0.62797566]
[1773330104207,7.3873102,2076.3,2075.2,0.62797566]
[1773330104523,7.3873102,2076.3,2074.9,5.36419567]
[1773330104524,2.3203102,2075.7,2074.9,0.54469396]
[1773330104723,2.3203102,2075.7,2074.5,1.20510966]
[1773330104724,1.455,2075.6,2074.5,1.20510966]
[1773330104930,0.44769097,2075.5,2074.5,1.20510966]
[1773330105127,1.455,2075.6,2074.5,1.20510966]
[1773330105341,1.455,2075.6,2074.1,4.82043865]
[1773330105342,2.3203102,2075.1,2074.1,1.83331773]
[1773330105647,0.64850025,2075.5,2074.2,0.62797566]
[1773330105831,1.65200741,2075.4,2074.3,1.20522585]
[1773330106007,3.52489726,2075.4,2074.3,1.20522585]
[1773330106432,4.17339751,2075.4,2074.3,1.20522585]
[1773330106634,4.17339751,2075.4,2073.8,0.62797566]
[1773330106635,2.3203102,2074.8,2073.8,0.62797566]
[1773330106983,2.3203102,2074.8,2073.9,1.20545831]
[1773330107106,1.455,2074.9,2073.8,1.83345465]
[1773330107107,3.7753102,2074.9,2073.8,1.83345465]
[1773330107307,3.7753102,2074.9,2073.8,1.8816753]
[1773330107650,3.78043225,2074.9,2073.8,1.83345465]
[1773330107820,2.32543225,2074.6,2073.8,1.20547899]
[1773330108338,1.20493541,2074.8,2073.8,1.20547899]
[1773330108647,2.32543225,2074.3,2073.5,1.83366652]
[1773330108823,2.32543225,2074.3,2073.3,4.82310765]
[1773330109147,2.32543225,2074.3,2073.3,1.20580716]
[1773330109315,2.32543225,2073.4,2072.6,1.20621441]
[1773330109649,2.58923306,2073.7,2072.6,1.25444145]
[1773330109833,6.12027294,2073.7,2072.6,1.88241711]
[1773330110011,6.12027294,2073.7,2072.6,1.83419007]
[1773330110210,6.92365894,2074.2,2072.7,0.62797566]
[1773330110211,1.20534207,2074.1,2072.7,0.62797566]
[1773330110453,3.77943225,2074.0,2072.7,0.62797566]
[1773330110625,1.2052696,2074.3,2072.8,0.61954192]
[1773330110852,2.32543225,2074.0,2072.8,0.61954192]
[1773330111175,1.81910902,2074.3,2070.7,3.31829323]
[1773330111176,0.52317984,2072.8,2070.7,3.31829323]
[1773330111477,0.52317984,2072.8,2070.5,0.001]
[1773330111479,0.52317984,2072.8,2071.0,0.61954192]
[1773330111480,2.32543225,2072.1,2071.0,0.61954192]
[1773330112037,3.53198055,2072.1,2071.0,0.61954192]
[1773330112258,3.53195332,2072.1,2071.0,0.61954192]
[1773330112479,2.32543225,2072.1,2071.0,0.61954192]
[1773330112766,4.82532391,2072.4,2071.0,1.82667719]
[1773330112767,2.32543225,2072.4,2071.0,1.82667719]
[1773330112971,3.27413801,2072.5,2071.0,1.82667719]
[1773330112972,2.32543225,2072.1,2071.0,0.61954192]
[1773330113179,2.32543225,2071.5,2070.5,0.001]
[1773330113978,1.20691319,2071.4,2070.5,0.001]
[1773330114980,2.32543225,2071.2,2070.5,0.001]
[1773330115144,1.20691319,2071.4,2070.5,0.001]
[1773330115145,2.66191319,2071.4,2070.5,0.001]
[1773330115470,2.32543225,2071.2,2070.5,0.001]
[1773330115682,1.20691319,2071.4,2070.5,0.001]
[1773330115845,3.53231428,2071.5,2070.5,0.001]
[1773330116052,1.455,2071.6,2070.5,0.62054192]
[1773330116380,2.661803,2071.6,2070.5,0.62054192]
[1773330116554,2.32543225,2071.8,2070.5,0.62054192]
[1773330116555,3.53213733,2071.8,2070.5,0.62054192]
[1773330116757,2.6389975,2072.1,2070.5,0.62054192]
[1773330116973,0.31348377,2072.9,2071.5,0.61954192]
[1773330117158,0.31348377,2072.9,2071.8,0.61954192]
[1773330117685,4.82250112,2073.7,2071.6,0.065536]
[1773330117686,1.20551644,2073.8,2072.1,0.61954192]
[1773330117846,1.20551644,2073.8,2071.7,1.539]
[1773330117847,1.205462,2073.9,2072.4,0.61954192]
[1773330118050,5.13488175,2074.0,2072.6,0.61954192]
[1773330118051,1.51865338,2074.0,2072.6,0.61954192]
[1773330118255,0.31324153,2074.0,2073.0,0.61954192]
[1773330118461,0.31324153,2074.0,2073.3,0.61954192]
[1773330118661,0.002,2074.6,2073.8,0.61954192]
[1773330118860,1.20695324,2074.8,2074.0,0.61954192]
[1773330119158,0.002,2074.8,2074.0,0.61954192]
[1773330119464,0.002,2075.1,2073.7,3.85843225]
[1773330119465,0.002,2075.1,2074.4,0.61954192]
[1773330120064,0.002,2075.1,2074.7,0.61954192]
[1773330120690,0.002,2075.1,2074.3,1.20517654]
[1773330120891,0.002,2075.1,2074.4,0.61954192]
[1773330121576,0.002,2075.1,2074.6,0.61954192]
[1773330121758,5.13002698,2076.4,2074.8,0.61954192]
[1773330121759,1.20406492,2076.3,2074.8,0.61954192]
[1773330121959,5.13024549,2076.4,2075.1,0.61954192]
[1773330121960,0.3139858,2076.4,2075.1,0.61954192]
[1773330122274,0.3139858,2076.4,2075.3,0.61954192]
[1773330122275,1.51800341,2076.4,2075.3,0.61954192]
[1773330122472,1.51800341,2076.4,2074.9,0.68507792]
[1773330122662,1.51800341,2076.4,2075.1,0.61954192]